bitfinex/quotes_BTCUSD_20251224
["timestamp","ask_amount","ask_price","bid_price","bid_amount"]
[1766571299698,0.01148,87108.0,87101.0,0.010971]
[1766571300258,0.01147987,87109.0,87101.0,0.010971]
[1766571300474,0.01147987,87109.0,87093.0,0.05740989]
[1766571300475,0.0688866,87100.0,87089.0,0.12317]
[1766571300692,0.00010218,87100.0,87090.0,0.04596]
[1766571301272,0.00010218,87100.0,87088.0,0.01159263]
[1766571301273,0.01148145,87097.0,87088.0,0.00011]
[1766571301509,0.01148145,87097.0,87083.0,0.12317]
[1766571301510,0.01148158,87096.0,87083.0,0.12317]
[1766571301682,0.01152,87102.0,87083.0,0.12317]
[1766571301683,0.00011,87088.0,87084.0,0.01152]
[1766571301897,0.00011,87088.0,87084.0,0.01162218]
[1766571302072,0.01148145,87097.0,87078.0,0.10348955]
[1766571302073,0.06815483,87095.0,87078.0,0.10348955]
[1766571302273,0.06815519,87095.0,87081.0,0.01148356]
[1766571302485,0.06899807,87098.0,87084.0,0.01148316]
[1766571302827,0.00011,87098.0,87086.0,0.12317]
[1766571302944,0.00011,87098.0,87085.0,0.01152]
[1766571302945,0.00011,87098.0,87088.0,0.12317]
[1766571303349,0.00011,87098.0,87088.0,0.13465263]
[1766571303950,0.00011,87098.0,87088.0,0.12317]
[1766571304153,0.01148158,87096.0,87087.0,0.01152]
[1766571304354,0.00011,87098.0,87087.0,0.01152]
[1766571304764,0.06899792,87098.0,87087.0,0.01152]
[1766571305166,0.00011,87098.0,87087.0,0.01152]
[1766571305369,0.00011,87098.0,87087.0,0.02300277]
[1766571305621,0.00011,87098.0,87087.0,0.01152]
[1766571305821,0.01159131,87098.0,87087.0,0.01152]
[1766571306028,0.01148145,87097.0,87087.0,0.01152]
[1766571306253,0.06888875,87097.0,87087.0,0.01152]
[1766571306523,0.0688912,87094.0,87085.0,0.01152]
[1766571306682,0.05740853,87096.0,87085.0,0.01152]
[1766571307021,0.01148184,87094.0,87085.0,0.01152]
[1766571307381,0.01148184,87094.0,87078.0,0.00011]
[1766571307382,0.01148263,87088.0,87078.0,0.00011]
[1766571307648,0.0114829,87086.0,87078.0,0.00011]
[1766571307852,0.06889662,87087.0,87078.0,0.00011]
[1766571308074,0.0114829,87086.0,87078.0,0.00011]
[1766571308276,0.06889747,87086.0,87078.0,0.00011]
[1766571308481,0.01148356,87081.0,87078.0,0.00011]
[1766571308600,0.068899,87084.0,87078.0,0.00011]
[1766571308802,0.01148329,87083.0,87078.0,0.00011]
[1766571308999,0.068899,87084.0,87078.0,0.00011]
[1766571310044,0.06889778,87086.0,87078.0,0.00011]
[1766571310229,0.01148303,87085.0,87078.0,0.00011]
[1766571310408,0.06889831,87085.0,87078.0,0.00011]
[1766571310826,0.01148316,87084.0,87078.0,0.00011]
[1766571311021,0.06889831,87085.0,87078.0,0.00011]
[1766571311264,0.01148316,87084.0,87078.0,0.00011]
[1766571311471,0.06889831,87085.0,87078.0,0.00011]
[1766571311893,0.01148303,87085.0,87078.0,0.00011]
[1766571312098,0.01148316,87084.0,87078.0,0.00011]
[1766571312301,0.01148329,87083.0,87078.0,0.00011]
[1766571312498,0.01148329,87083.0,87073.0,0.01152]
[1766571312499,0.05741809,87081.0,87073.0,0.01152]
[1766571312709,0.01148356,87081.0,87073.0,0.01152]
[1766571312880,0.01148369,87080.0,87073.0,0.01152]
[1766571313214,0.01148382,87079.0,87073.0,0.01152]
[1766571313642,0.01148316,87084.0,87079.0,0.000549]
[1766571313855,0.01148329,87083.0,87079.0,0.000549]
[1766571314056,0.06889956,87084.0,87079.0,0.000549]
[1766571314288,0.01148263,87088.0,87075.0,0.12317]
[1766571314695,0.0114829,87086.0,87075.0,0.12317]
[1766571314875,0.01148303,87085.0,87075.0,0.12317]
[1766571315120,0.06889756,87086.0,87075.0,0.12317]
[1766571315315,0.01148316,87084.0,87075.0,0.12317]
[1766571315519,0.01148356,87081.0,87075.0,0.12317]
[1766571315735,0.01148356,87081.0,87073.0,0.01152]
[1766571316538,0.01148303,87085.0,87073.0,0.01152]
[1766571316658,0.06889963,87084.0,87081.0,0.000549]
[1766571316861,0.01148342,87082.0,87073.0,0.01152]
[1766571317056,0.06890034,87083.0,87073.0,0.01152]
[1766571317480,0.01148342,87082.0,87073.0,0.01152]
[1766571317687,0.06890107,87082.0,87073.0,0.01152]
[1766571318691,0.01148356,87081.0,87073.0,0.01152]
[1766571318918,0.06890107,87082.0,87073.0,0.01152]
[1766571319115,0.06890057,87082.0,87073.0,0.01152]
[1766571319321,0.01148369,87080.0,87073.0,0.01152]
[1766571319491,0.01148382,87079.0,87073.0,0.01152]
[1766571319673,0.0574197,87079.0,87068.0,0.12317]
[1766571319894,0.0574197,87079.0,87063.0,0.01159593]
[1766571319895,0.01148395,87078.0,87069.0,0.01152]
[1766571320235,0.01152,87082.0,87078.0,0.000549]
[1766571320236,0.02300342,87082.0,87078.0,0.000549]
[1766571320436,0.02300342,87082.0,87068.0,0.02300527]
[1766571320437,0.01152,87087.0,87077.0,0.12317]
[1766571320735,0.02300277,87087.0,87077.0,0.12317]
[1766571320955,0.01148342,87082.0,87077.0,0.12317]
[1766571321159,0.01148356,87081.0,87073.0,0.0001429]
[1766571321313,0.000107,87077.0,87072.0,0.01152]
[1766571321516,0.0001068,87077.0,87070.0,0.01152]
[1766571323425,0.01159088,87077.0,87070.0,0.01152]
[1766571323630,0.0001068,87077.0,87070.0,0.01152]
[1766571324450,0.0001068,87077.0,87067.0,0.0114854]
[1766571324629,8e-07,87077.0,87067.0,0.06891218]
[1766571324834,8e-07,87077.0,87067.0,0.06891236]
[1766571325036,8e-07,87077.0,87068.0,0.01148527]
[1766571325239,8e-07,87077.0,87067.0,0.1346554]
[1766571325677,8e-07,87077.0,87068.0,0.01148527]
[1766571326018,8e-07,87077.0,87067.0,0.1346554]
[1766571326221,0.05742148,87077.0,87067.0,0.12317]
[1766571326414,0.06890556,87077.0,87067.0,0.12317]
[1766571326622,8e-07,87077.0,87067.0,0.12317]
[1766571327140,0.01148422,87076.0,87065.0,3.66e-06]
[1766571327348,0.0115208,87077.0,87065.0,3.66e-06]
[1766571327544,0.02300488,87077.0,87065.0,3.66e-06]
[1766571327767,0.02300488,87077.0,87066.0,0.01148553]
[1766571327768,0.0115208,87077.0,87066.0,0.01148553]
[1766571327965,0.0115208,87077.0,87065.0,0.01148933]
[1766571328216,0.0115208,87077.0,87065.0,0.06891761]
[1766571328680,0.02300488,87077.0,87065.0,3.66e-06]
[1766571329169,0.06890538,87076.0,87065.0,3.66e-06]
[1766571329840,0.01148422,87076.0,87065.0,3.66e-06]
[1766571330613,0.01148435,87075.0,87065.0,3.66e-06]
[1766571331014,0.06890588,87076.0,87065.0,3.66e-06]
[1766571331214,0.08042542,87077.0,87065.0,3.66e-06]
[1766571331537,0.01148422,87076.0,87065.0,3.66e-06]
[1766571331881,0.01148435,87075.0,87065.0,3.66e-06]
[1766571332225,0.06890537,87076.0,87065.0,3.66e-06]
[1766571332430,0.01148435,87075.0,87065.0,3.66e-06]
[1766571332628,0.08042543,87077.0,87065.0,3.66e-06]
[1766571332847,0.08042593,87077.0,87065.0,3.66e-06]
[1766571333073,0.01148435,87075.0,87065.0,3.66e-06]
[1766571333270,0.01148422,87076.0,87065.0,3.66e-06]
[1766571333443,0.01148448,87074.0,87065.0,3.66e-06]
[1766571333647,0.05742366,87073.0,87065.0,3.66e-06]
[1766571334274,0.06890787,87073.0,87063.0,0.00011]
[1766571334483,0.01148474,87072.0,87063.0,0.00011]
[1766571334718,0.01148461,87073.0,87063.0,0.00011]
[1766571334895,0.01148474,87072.0,87063.0,0.00011]
[1766571335437,0.06890773,87073.0,87063.0,0.00011]
[1766571335438,0.06890769,87073.0,87063.0,0.00011]
[1766571336000,0.06890773,87073.0,87063.0,0.00011]
[1766571336160,0.01148461,87073.0,87063.0,0.00011]
[1766571336747,0.06890539,87076.0,87063.0,0.00011]
[1766571336972,0.01148422,87076.0,87073.0,0.000336]
[1766571337416,0.01148422,87076.0,87063.0,0.00011]
[1766571337630,0.01148435,87075.0,87063.0,0.00011]
[1766571337856,0.02300488,87077.0,87063.0,0.00011]
[1766571337857,0.08042653,87077.0,87063.0,0.00011]
[1766571338018,0.01148435,87075.0,87063.0,0.00011]
[1766571338235,0.01148448,87074.0,87063.0,0.00011]
[1766571338435,0.01148435,87075.0,87063.0,0.00011]
[1766571338636,0.01148448,87074.0,87063.0,0.00011]
[1766571339049,0.05742242,87074.0,87063.0,0.00011]
[1766571339250,0.0689069,87074.0,87063.0,0.00011]
[1766571339634,0.08042538,87077.0,87074.0,0.000336]
[1766571339844,0.0574214,87076.0,87074.0,0.000336]
[1766571340054,0.05742124,87076.0,87063.0,0.01159593]
[1766571340267,0.08042538,87077.0,87063.0,0.06902556]
[1766571340479,0.01148448,87074.0,87063.0,0.00011]
[1766571341134,0.06890663,87075.0,87063.0,0.00011]
[1766571341352,0.0115208,87077.0,87064.0,0.1276558]
[1766571341569,0.0115208,87077.0,87075.0,0.000336]
[1766571341784,0.0115208,87077.0,87066.0,0.01148553]
[1766571342248,0.11250383,87083.0,87066.0,0.01148553]
[1766571342249,0.01148329,87083.0,87068.0,0.12765527]
[1766571342470,0.01152,87082.0,87070.0,0.11617]
[1766571342708,0.01152,87082.0,87071.0,0.11731836]
[1766571343147,0.02480878,87083.0,87082.0,0.000336]
[1766571343317,0.01152,87084.0,87082.0,0.000336]
[1766571343490,0.01152,87084.0,87068.0,0.0116268]
[1766571343491,0.01152,87084.0,87075.0,0.11617]
[1766571344092,0.01148329,87083.0,87075.0,0.11617]
[1766571344302,0.08041934,87084.0,87075.0,0.11617]
[1766571344498,0.01148329,87083.0,87075.0,0.11617]
[1766571345867,0.05741714,87082.0,87075.0,0.11617]
[1766571346246,0.01148329,87083.0,87075.0,0.11617]
[1766571346583,0.08041934,87084.0,87075.0,0.11617]
[1766571347332,0.01148329,87083.0,87075.0,0.11617]
[1766571348151,0.02300316,87084.0,87075.0,0.11617]
[1766571348361,0.08041907,87084.0,87075.0,0.11617]
[1766571349656,0.01148329,87083.0,87075.0,0.11617]
[1766571351192,0.02300316,87084.0,87075.0,0.11617]
[1766571351388,0.01152,87084.0,87075.0,0.11617]
[1766571351838,0.02300303,87085.0,87074.0,0.11617]
[1766571352080,0.01152,87085.0,87074.0,0.11617]
[1766571352254,0.01152,87085.0,87074.0,0.06890677]
[1766571352461,0.01152,87085.0,87075.0,0.11617]
[1766571352992,0.01148316,87084.0,87075.0,0.11617]
[1766571353157,0.01148329,87083.0,87075.0,0.11617]
[1766571354382,0.06889992,87083.0,87075.0,0.11617]
[1766571355312,0.06889992,87083.0,87073.0,0.01152]
[1766571355313,0.000213,87075.0,87073.0,0.01152]
[1766571355536,0.05742035,87078.0,87073.0,0.01097]
[1766571355719,0.0689043,87078.0,87072.0,0.01152]
[1766571356488,0.01148395,87078.0,87072.0,0.01152]
[1766571356912,0.06890334,87079.0,87072.0,0.01152]
[1766571357293,0.11254054,87085.0,87072.0,0.01152]
[1766571357294,0.01148342,87082.0,87072.0,0.01152]
[1766571357457,0.01148342,87082.0,87079.0,0.000336]
[1766571357745,0.01148342,87082.0,87072.0,0.01152]
[1766571357919,0.01148356,87081.0,87072.0,0.12769]
[1766571358135,2e-06,87081.0,87072.0,0.01152]
[1766571358311,0.01148369,87080.0,87073.0,0.11546]
[1766571358731,0.06890387,87081.0,87073.0,0.11546]
[1766571359354,2e-06,87081.0,87073.0,0.11546]
[1766571359911,0.01148369,87080.0,87073.0,0.11546]
[1766571360135,2e-06,87081.0,87073.0,0.11546]
[1766571360964,2e-06,87081.0,87072.0,0.01152]
[1766571362406,2e-06,87081.0,87072.0,0.12698]
[1766571362609,0.01152,87084.0,87073.0,0.11546]
[1766571362834,1.82e-06,87085.0,87073.0,0.11546]
[1766571363035,0.02300303,87085.0,87073.0,0.10469]
[1766571363238,0.08041834,87085.0,87073.0,0.10469]
[1766571363534,0.01148329,87083.0,87073.0,0.10469]
[1766571363740,0.06889954,87084.0,87073.0,0.10469]
[1766571363954,0.08041871,87085.0,87073.0,0.10469]
[1766571364085,0.13541316,87084.0,87073.0,0.10469]
[1766571364281,0.13541316,87084.0,87072.0,0.02300474]
[1766571364492,0.12393,87084.0,87072.0,0.06894371]
[1766571364696,0.12393,87084.0,87073.0,0.01148461]
[1766571365169,0.12393,87084.0,87073.0,0.06890763]
[1766571365525,0.12393,87084.0,87074.0,0.01148448]
[1766571366473,0.12393,87084.0,87075.0,0.01148435]
[1766571366980,0.11656342,87084.0,87075.0,0.06890593]
[1766571367338,0.11656342,87084.0,87077.0,0.01148408]
[1766571368486,0.11656342,87084.0,87075.0,0.06890593]
[1766571368663,0.11656342,87084.0,87076.0,0.01148422]
[1766571369439,0.11622742,87084.0,87076.0,0.06890494]
[1766571369643,0.11622742,87084.0,87076.0,0.01148422]
[1766571370381,0.11622742,87084.0,87077.0,0.01148408]
[1766571370622,0.11622742,87084.0,87076.0,0.06890516]
[1766571370806,0.11622742,87084.0,87074.0,0.01148448]
[1766571371277,0.11622742,87084.0,87074.0,0.06890658]
[1766571372643,0.11622742,87084.0,87075.0,0.01148435]
[1766571372984,0.11622742,87084.0,87074.0,0.06890658]
[1766571373468,0.11622742,87084.0,87074.0,0.01148448]
[1766571373837,0.11622742,87084.0,87075.0,0.01148435]
[1766571374021,0.11622742,87084.0,87076.0,0.05742098]
[1766571374365,0.12774742,87084.0,87076.0,0.0689052]
[1766571374557,0.12774742,87084.0,87076.0,0.01148422]
[1766571374957,0.12774742,87084.0,87072.0,0.12391]
[1766571374958,0.01148342,87082.0,87072.0,0.12391]
[1766571375138,0.01148342,87082.0,87072.0,0.01152]
[1766571375139,0.12393,87081.0,87072.0,0.01152]
[1766571375351,0.01148382,87079.0,87072.0,0.01152]
[1766571375545,0.13541382,87079.0,87072.0,0.01152]
[1766571375812,0.19283346,87079.0,87072.0,0.01152]
[1766571375966,0.13541382,87079.0,87072.0,0.01152]
[1766571376175,0.06890655,87075.0,87072.0,0.01152]
[1766571376374,0.01148435,87075.0,87072.0,0.01152]
[1766571376559,0.13541435,87075.0,87072.0,0.01152]
[1766571376759,0.18135286,87074.0,87072.0,0.010971]
[1766571376960,0.12393,87073.0,87067.0,0.01152]
[1766571377161,0.12393,87073.0,87063.0,0.00011]
[1766571377162,0.13541474,87072.0,87063.0,0.00011]
[1766571377375,0.13541474,87072.0,87063.0,0.01163]
[1766571377376,0.12393,87070.0,87063.0,0.01163]
[1766571377575,0.12393,87070.0,87063.0,0.00011]
[1766571378489,0.12393,87070.0,87063.0,0.01159593]
[1766571378692,0.123381,87070.0,87063.0,0.01159593]
[1766571378890,0.123381,87070.0,87063.0,0.06902544]
[1766571379094,0.123381,87070.0,87064.0,0.06891475]
[1766571379297,0.01158542,87073.0,87068.0,0.01148527]
[1766571379520,3.539e-05,87073.0,87067.0,0.18437192]
[1766571379846,3.539e-05,87073.0,87068.0,0.06891163]
[1766571380390,3.539e-05,87073.0,87069.0,0.01148514]
[1766571380600,3.539e-05,87073.0,87069.0,0.06891079]
[1766571380823,3.539e-05,87073.0,87068.0,0.06891044]
[1766571381026,3.539e-05,87073.0,87069.0,0.06891084]
[1766571381272,3.539e-05,87073.0,87070.0,0.01148501]
[1766571381495,3.539e-05,87073.0,87069.0,0.01148514]
[1766571381706,3.539e-05,87073.0,87068.0,0.12694527]
[1766571381863,3.539e-05,87073.0,87069.0,0.01148514]
[1766571382054,3.539e-05,87073.0,87069.0,0.06891078]
[1766571383202,3.539e-05,87073.0,87070.0,0.01148501]
[1766571383399,3.539e-05,87073.0,87070.0,0.06890985]
[1766571383597,0.01152,87077.0,87073.0,0.01148461]
[1766571384118,0.01152,87077.0,87072.0,0.06890841]
[1766571384864,0.01152,87077.0,87073.0,0.01148461]
[1766571385507,0.01152,87077.0,87073.0,0.06890758]
[1766571385681,0.01152,87077.0,87072.0,0.01148474]
[1766571385889,0.01152,87077.0,87073.0,0.01148461]
[1766571386162,0.01152,87077.0,87072.0,0.0689084]
[1766571386530,0.01152,87077.0,87071.0,0.068909]
[1766571386736,0.01152,87077.0,87072.0,0.01148474]
[1766571386896,0.01152,87077.0,87072.0,0.06890843]
[1766571387094,0.01152,87077.0,87072.0,0.01148474]
[1766571387295,0.01152,87077.0,87072.0,0.0689084]
[1766571387522,0.01152,87077.0,87072.0,0.01148474]
[1766571387720,0.19282833,87085.0,87071.0,0.184369]
[1766571387942,0.01152,87084.0,87072.0,0.06890799]
[1766571388094,0.14726316,87084.0,87072.0,0.01148474]
[1766571388440,0.12426,87082.0,87071.0,0.184369]
[1766571388791,0.12426,87082.0,87072.0,0.01148474]
[1766571389382,0.12426,87082.0,87071.0,0.184369]
[1766571390118,0.12426,87082.0,87071.0,0.12694488]
[1766571390322,0.01148356,87081.0,87071.0,0.11546]
[1766571390582,0.19316108,87082.0,87071.0,0.11546]
[1766571390741,0.13574342,87082.0,87071.0,0.11546]
[1766571390936,0.01148356,87081.0,87071.0,0.11546]
[1766571391140,0.01148369,87080.0,87071.0,0.11546]
[1766571391405,0.19316139,87081.0,87071.0,0.11546]
[1766571391538,0.01148369,87080.0,87071.0,0.11546]
[1766571393359,0.01148382,87079.0,87071.0,0.11546]
[1766571394082,0.03514681,87080.0,87071.0,0.11546]
[1766571394552,0.09256576,87080.0,87071.0,0.11546]
[1766571395560,0.01148408,87077.0,87071.0,0.114911]
[1766571396045,0.06890302,87079.0,87071.0,0.114911]
[1766571396727,0.01148395,87078.0,87071.0,0.114911]
[1766571397531,0.01148382,87079.0,87071.0,0.114911]
[1766571397748,0.01148395,87078.0,87071.0,0.114911]
[1766571397907,0.01148382,87079.0,87071.0,0.114911]
[1766571399810,0.03514681,87080.0,87071.0,0.114911]
[1766571400259,0.0466305,87080.0,87071.0,0.114911]
[1766571400479,0.03514681,87080.0,87071.0,0.114911]
[1766571400772,0.0466305,87080.0,87071.0,0.114911]
[1766571401304,0.03514681,87080.0,87071.0,0.114911]
[1766571402644,0.0466305,87080.0,87071.0,0.114911]
[1766571402845,0.10404897,87080.0,87071.0,0.114911]
[1766571403162,0.0466305,87080.0,87071.0,0.114911]
[1766571403567,0.03514681,87080.0,87071.0,0.114911]
[1766571403774,0.0466305,87080.0,87071.0,0.114911]
[1766571404203,0.03514681,87080.0,87071.0,0.114911]
[1766571404617,0.0466305,87080.0,87071.0,0.114911]
[1766571404782,0.03514681,87080.0,87071.0,0.114911]
[1766571405004,0.0466305,87080.0,87071.0,0.114911]
[1766571405365,0.03514681,87080.0,87071.0,0.114911]
[1766571405623,0.0466305,87080.0,87071.0,0.114911]
[1766571405798,0.06890308,87079.0,87071.0,0.114911]
[1766571406393,0.10404905,87080.0,87071.0,0.114911]
[1766571407357,0.02300316,87084.0,87071.0,0.12639588]
[1766571407504,0.02300316,87084.0,87072.0,0.13632474]
[1766571407992,0.04782675,87084.0,87072.0,0.19374844]
[1766571408345,0.03634359,87084.0,87072.0,0.19374844]
[1766571408646,0.01152,87084.0,87072.0,0.19374844]
[1766571408880,0.02300316,87084.0,87073.0,0.13632461]
[1766571409152,0.04782675,87084.0,87073.0,0.13632461]
[1766571409351,0.04782675,87084.0,87073.0,0.12484]
[1766571410057,0.03634359,87084.0,87073.0,0.12484]
[1766571410271,0.01152,87084.0,87073.0,0.18226306]
[1766571410698,0.01152,87084.0,87075.0,0.01148435]
[1766571410927,0.01152,87084.0,87077.0,0.01148408]
[1766571411150,0.01152,87084.0,87078.0,0.12484]
[1766571411459,0.01152,87086.0,87079.0,0.13632382]
[1766571411553,0.01152,87086.0,87079.0,0.12484]
[1766571411776,0.01152,87086.0,87079.0,0.13632382]
[1766571412000,0.01152,87086.0,87079.0,0.19374289]
[1766571412225,0.01152,87086.0,87079.0,0.06890289]
[1766571412460,0.01152,87086.0,87080.0,0.12484]
[1766571412930,0.010971,87086.0,87080.0,0.12484]
[1766571413884,0.010971,87086.0,87080.0,0.13632369]
[1766571414479,0.010971,87086.0,87080.0,0.12484]
[1766571414737,0.010971,87086.0,87080.0,0.13632369]
[1766571415407,0.010971,87086.0,87080.0,0.13747194]
[1766571415598,0.00011,87098.0,87087.0,0.05147]
[1766571415738,0.00017135,87098.0,87088.0,0.01152]
[1766571415937,0.12091,87093.0,87077.0,0.01148408]
[1766571416141,0.12091,87088.0,87081.0,0.03447826]
[1766571416764,0.12091,87088.0,87078.0,0.01152]
[1766571416971,0.12091,87088.0,87079.0,0.03447826]
[1766571417390,0.12091,87088.0,87076.0,0.06890485]
[1766571417715,0.12091,87088.0,87080.0,0.01152]
[1766571418094,0.12091,87088.0,87080.0,0.02300369]
[1766571418959,0.12091,87088.0,87080.0,0.08042212]
[1766571419279,0.12091,87088.0,87082.0,0.01148342]
[1766571419980,0.12091,87088.0,87081.0,0.06890113]
[1766571420425,0.12091,87088.0,87080.0,0.01152]
[1766571420596,0.12091,87088.0,87080.0,0.06893835]
[1766571420804,0.12091,87088.0,87080.0,0.01152]
[1766571421403,0.00028731,87080.0,87079.0,0.01152]
[1766571421647,0.01148303,87085.0,87079.0,0.01152]
[1766571421843,0.13084316,87084.0,87077.0,0.01152]
[1766571422101,0.13084316,87084.0,87075.0,0.01152]
[1766571422462,0.11936,87082.0,87075.0,0.01152]
[1766571424464,0.11936,87082.0,87073.0,0.01152]
[1766571424693,0.11936,87082.0,87072.0,0.01152]
[1766571425092,0.11936,87082.0,87073.0,0.01148461]
[1766571425295,0.11936,87082.0,87072.0,0.01152]
[1766571425887,0.13084342,87082.0,87072.0,0.01152]
[1766571426055,0.11936,87082.0,87072.0,0.01152]
[1766571428237,0.11936,87082.0,87071.0,0.02300488]
[1766571429208,0.11936,87082.0,87071.0,0.08042926]
[1766571429405,0.01148422,87076.0,87067.0,0.07396]
[1766571429566,0.000287,87071.0,87068.0,0.01152]
[1766571430049,0.11936,87076.0,87068.0,0.01152]
[1766571431279,0.11936,87076.0,87068.0,0.10152]
[1766571431485,0.13084448,87074.0,87068.0,0.10152]
[1766571432238,0.05742425,87072.0,87068.0,0.10152]
[1766571432513,0.0574238,87072.0,87068.0,0.10152]
[1766571432857,0.06890854,87072.0,87068.0,0.10152]
[1766571433174,0.01148488,87071.0,87068.0,0.089713]
[1766571433548,0.05742552,87070.0,87068.0,3e-06]
[1766571434218,0.01148514,87069.0,87066.0,0.01152]
[1766571434398,0.06891097,87069.0,87066.0,0.01152]
[1766571435033,0.01148514,87069.0,87066.0,0.01152]
[1766571435229,0.06891053,87070.0,87066.0,0.01152]
[1766571435930,0.01148514,87069.0,87066.0,0.01152]
[1766571436981,0.06891053,87070.0,87066.0,0.01122002]
[1766571437427,0.13084488,87071.0,87070.0,0.000549]
[1766571437428,0.11936,87071.0,87070.0,0.000549]
[1766571437604,0.11936,87071.0,87066.0,0.01122002]
[1766571437821,0.1075231,87071.0,87066.0,0.01122002]
[1766571438143,0.01148448,87074.0,87066.0,0.01122002]
[1766571438283,0.06890643,87075.0,87066.0,0.01122002]
[1766571438284,0.01148435,87075.0,87066.0,0.01122002]
[1766571439152,0.19978549,87076.0,87066.0,0.01122002]
[1766571439399,0.19978539,87076.0,87066.0,0.01122002]
[1766571439599,0.13088,87076.0,87066.0,0.01122002]
[1766571440019,0.13088,87076.0,87066.0,2e-08]
[1766571440020,0.11936,87072.0,87066.0,2e-08]
[1766571441126,0.11936,87072.0,87063.0,0.00011]
[1766571441297,0.13084474,87072.0,87063.0,0.00017542]
[1766571441477,0.11936,87072.0,87063.0,0.00017542]
[1766571441919,0.118811,87072.0,87063.0,0.01166135]
[1766571442124,0.118811,87072.0,87063.0,0.06909062]
[1766571442329,0.118811,87072.0,87063.0,0.00017542]
[1766571442522,0.118811,87072.0,87063.0,0.06909095]
[1766571442704,0.118811,87072.0,87065.0,0.01148567]
[1766571443044,0.118811,87072.0,87064.0,0.0114858]
[1766571443587,0.118811,87072.0,87063.0,0.00017542]
[1766571445010,0.13029574,87072.0,87063.0,0.00017542]
[1766571445212,0.06890636,87075.0,87064.0,0.1166]
[1766571445405,0.02300422,87076.0,87064.0,0.1166]
[1766571445620,0.06890815,87073.0,87064.0,0.1166]
[1766571446038,0.01148488,87071.0,87064.0,0.1166]
[1766571446254,0.0689087,87072.0,87064.0,0.1166]
[1766571446483,0.000549,87064.0,87063.0,0.00017542]
[1766571446835,0.11936,87070.0,87063.0,0.00017542]
[1766571447490,0.01148408,87077.0,87063.0,0.00017542]
[1766571447688,0.01152,87076.0,87067.0,0.1166]
[1766571447863,0.01152,87076.0,87067.0,0.1280854]
[1766571448065,0.01152,87076.0,87067.0,0.1166]
[1766571448226,0.01152,87076.0,87067.0,0.1280854]
[1766571448632,0.01152,87076.0,87067.0,0.1166]
[1766571448833,0.01152,87076.0,87067.0,0.12812]
[1766571449509,0.02300422,87076.0,87067.0,0.12812]
[1766571450149,0.01148435,87075.0,87067.0,0.12812]
[1766571450511,0.02300422,87076.0,87067.0,0.12812]
[1766571451011,0.01152,87076.0,87067.0,0.12812]
[1766571452247,0.02300422,87076.0,87067.0,0.12812]
[1766571452468,0.01148435,87075.0,87067.0,0.12812]
[1766571452677,0.01152,87076.0,87067.0,0.12812]
[1766571452874,0.02300422,87076.0,87067.0,0.12812]
[1766571453304,0.01148435,87075.0,87067.0,0.01152]
[1766571453502,0.06890705,87074.0,87067.0,0.01152]
[1766571453704,0.01148474,87072.0,87067.0,0.01152]
[1766571453905,0.06890789,87073.0,87067.0,0.01152]
[1766571454121,0.01148474,87072.0,87067.0,0.01152]
[1766571454328,0.06890792,87073.0,87067.0,0.01152]
[1766571454694,0.01148474,87072.0,87067.0,0.01152]
[1766571455436,0.06890792,87073.0,87067.0,0.01152]
[1766571456082,0.06890779,87073.0,87067.0,0.01152]
[1766571456465,0.01148474,87072.0,87067.0,0.01152]
[1766571456699,0.06890779,87073.0,87067.0,0.01152]
[1766571457348,0.06890786,87073.0,87067.0,0.01152]
[1766571457646,0.01148474,87072.0,87067.0,0.01152]
[1766571458204,0.01148488,87071.0,87067.0,0.010971]
[1766571458428,0.0574244,87071.0,87067.0,0.010971]
[1766571458746,0.01148488,87071.0,87067.0,0.010971]
[1766571459088,0.01148474,87072.0,87067.0,0.010971]
[1766571459290,0.01148488,87071.0,87067.0,0.010971]
[1766571459736,0.02860892,87070.0,87067.0,0.010971]
[1766571459937,0.22123952,87070.0,87067.0,1e-06]
[1766571460151,0.22123916,87070.0,87067.0,1e-06]
[1766571460313,0.15232892,87070.0,87067.0,1e-06]
[1766571461736,0.01281512,87074.0,87067.0,1e-06]
[1766571461921,0.01148408,87077.0,87067.0,1e-06]
[1766571462134,0.01152,87078.0,87067.0,1e-06]
[1766571462329,0.05742026,87078.0,87065.0,0.06891402]
[1766571462535,0.01148408,87077.0,87066.0,0.01152]
[1766571462997,0.01148422,87076.0,87066.0,0.01152]
[1766571463294,0.01148408,87077.0,87066.0,0.01152]
[1766571464248,0.06890457,87077.0,87066.0,0.01152]
[1766571465179,0.01148422,87076.0,87066.0,0.01152]
[1766571465421,0.12372,87076.0,87066.0,0.01152]
[1766571466087,0.12372,87076.0,87066.0,0.02300553]
[1766571466341,0.12372,87076.0,87066.0,0.01152]
[1766571466894,0.06890379,87078.0,87066.0,0.01152]
[1766571467115,0.01148382,87079.0,87066.0,0.01152]
[1766571467316,0.12372,87078.0,87067.0,0.06891199]
[1766571467522,0.12372,87078.0,87068.0,0.01148527]
[1766571467728,0.12372,87078.0,87067.0,0.06891201]
[1766571467905,0.01148369,87080.0,87066.0,0.02300553]
[1766571468165,0.02300356,87081.0,87066.0,0.02300553]
[1766571468359,2.44e-06,87080.0,87066.0,0.08043308]
[1766571468561,0.06890294,87079.0,87066.0,0.02300553]
[1766571468812,0.12372,87076.0,87066.0,0.01152]
[1766571469226,0.12372,87074.0,87066.0,0.01152]
[1766571469426,0.13520448,87074.0,87066.0,0.01152]
[1766571470545,0.01148461,87073.0,87066.0,0.01152]
[1766571470801,0.13520461,87073.0,87066.0,0.01152]
[1766571471015,0.01148474,87072.0,87066.0,0.01152]
[1766571471215,0.13520488,87071.0,87067.0,0.01152]
[1766571471446,0.12372,87071.0,87065.0,0.01152]
[1766571471634,0.13520488,87071.0,87065.0,0.01152]
[1766571471843,0.12372,87071.0,87065.0,0.01152]
[1766571472516,0.01148488,87071.0,87063.0,0.00017542]
[1766571472798,0.12372,87059.0,87055.0,0.01152]
[1766571472936,0.12377723,87059.0,87055.0,0.01152]
[1766571473143,0.12377723,87059.0,87055.0,0.10152]
[1766571473341,0.12377723,87059.0,87055.0,0.01152]
[1766571473565,0.12377723,87059.0,87052.0,0.01152]
[1766571473770,0.13526369,87059.0,87052.0,0.01152]
[1766571474104,0.13526369,87059.0,87043.0,0.05744857]
[1766571474105,0.0689217,87056.0,87043.0,0.01148857]
[1766571474342,0.12372,87054.0,87041.0,0.01148883]
[1766571474543,0.13520712,87054.0,87041.0,0.068933]
[1766571474758,0.13520712,87054.0,87040.0,0.01148897]